{"text_format":"1","workbook":"xlsx","n_sheets":3,"sheets":["التوصيل","قائمة","Blad3"],"not_rendered":{"charts":0,"images":11,"macros":1,"external_links":0,"defined_names":0,"comments":0,"pivot_tables":0},"unopened":[],"bounds":{"document_bytes":16777216,"sheet_cells":100000,"rows_first":2000,"rows_last":500,"rows_between":2000,"halvings":0,"cell_chars":16384,"cell_head_chars":4096},"cells_cut":0,"cells_raw":0,"read":"whole","date_system":"1900"}

{"sheet":"التوصيل","index":0,"n_rows":854,"n_cols":12,"rows_kept":854,"cut":false,"hidden":false,"merged":[[846,0,846,1],[847,0,847,2],[840,11,840,16],[852,0,852,4]]}
[]
[]
[]
[]
[]
[]
[]
[]
[]
[]
[]
[]
[]
[]
[]
[]
[]
[]
[]
[]
[]
[]
[]
[]
[]
[]
[]
[]
[]
[]
[]
[]
[]
[]
[]
[]
[]
[]
[]
[]
[]
[]
[]
[]
[]
[]
[]
[]
[]
[]
[]
[]
[]
[]
[]
[]
[]
[]
[]
[]
[]
[]
[]
[]
[]
[]
[]
[]
[]
[]
[]
[]
[]
[]
[]
[]
[]
[]
[]
[]
[]
[]
[]
[]
[]
[]
[]
[]
[]
[]
[]
[]
[]
[]
[]
[]
[]
[]
[]
[]
[]
[]
[]
[]
[]
[]
[]
[]
[]
[]
[]
[]
[]
[]
[]
[]
[]
[]
[]
[]
[]
[]
[]
[]
[]
[]
[]
[]
[]
[]
[]
[]
[]
[]
[]
[]
[]
[]
[]
[]
[]
[]
[]
[]
[]
[]
[]
[]
[]
[]
[]
[]
[]
[]
[]
[]
[]
[]
[]
[]
[]
[]
[]
[]
[]
[]
[]
[]
[]
[]
[]
[]
[]
[]
[]
[]
[]
[]
[]
[]
[]
[]
[]
[]
[]
[]
[]
[]
[]
[]
[]
[]
[]
[]
[]
[]
[]
[]
[]
[]
[]
[]
[]
[]
[]
[]
[]
[]
[]
[]
[]
[]
[]
[]
[]
[]
[]
[]
[]
[]
[]
[]
[]
[]
[]
[]
[]
[]
[]
[]
[]
[]
[]
[]
[]
[]
[]
[]
[]
[]
[]
[]
[]
[]
[]
[]
[]
[]
[]
[]
[]
[]
[]
[]
[]
[]
[]
[]
[]
[]
[]
[]
[]
[]
[]
[]
[]
[]
[]
[]
[]
[]
[]
[]
[]
[]
[]
[]
[]
[]
[]
[]
[]
[]
[]
[]
[]
[]
[]
[]
[]
[]
[]
[]
[]
[]
[]
[]
[]
[]
[]
[]
[]
[]
[]
[]
[]
[]
[]
[]
[]
[]
[]
[]
[]
[]
[]
[]
[]
[]
[]
[]
[]
[]
[]
[]
[]
[]
[]
[]
[]
[]
[]
[]
[]
[]
[]
[]
[]
[]
[]
[]
[]
[]
[]
[]
[]
[]
[]
[]
[]
[]
[]
[]
[]
[]
[]
[]
[]
[]
[]
[]
[]
[]
[]
[]
[]
[]
[]
[]
[]
[]
[]
[]
[]
[]
[]
[]
[]
[]
[]
[]
[]
[]
[]
[]
[]
[]
[]
[]
[]
[]
[]
[]
[]
[]
[]
[]
[]
[]
[]
[]
[]
[]
[]
[]
[]
[]
[]
[]
[]
[]
[]
[]
[]
[]
[]
[]
[]
[]
[]
[]
[]
[]
[]
[]
[]
[]
[]
[]
[]
[]
[]
[]
[]
[]
[]
[]
[]
[]
[]
[]
[]
[]
[]
[]
[]
[]
[]
[]
[]
[]
[]
[]
[]
[]
[]
[]
[]
[]
[]
[]
[]
[]
[]
[]
[]
[]
[]
[]
[]
[]
[]
[]
[]
[]
[]
[]
[]
[]
[]
[]
[]
[]
[]
[]
[]
[]
[]
[]
[]
[]
[]
[]
[]
[]
[]
[]
[]
[]
[]
[]
[]
[]
[]
[]
[]
[]
[]
[]
[]
[]
[]
[]
[]
[]
[]
[]
[]
[]
[]
[]
[]
[]
[]
[]
[]
[]
[]
[]
[]
[]
[]
[]
[]
[]
[]
[]
[]
[]
[]
[]
[]
[]
[]
[]
[]
[]
[]
[]
[]
[]
[]
[]
[]
[]
[]
[]
[]
[]
[]
[]
[]
[]
[]
[]
[]
[]
[]
[]
[]
[]
[]
[]
[]
[]
[]
[]
[]
[]
[]
[]
[]
[]
[]
[]
[]
[]
[]
[]
[]
[]
[]
[]
[]
[]
[]
[]
[]
[]
[]
[]
[]
[]
[]
[]
[]
[]
[]
[]
[]
[]
[]
[]
[]
[]
[]
[]
[]
[]
[]
[]
[]
[]
[]
[]
[]
[]
[]
[]
[]
[]
[]
[]
[]
[]
[]
[]
[]
[]
[]
[]
[]
[]
[]
[]
[]
[]
[]
[]
[]
[]
[]
[]
[]
[]
[]
[]
[]
[]
[]
[]
[]
[]
[]
[]
[]
[]
[]
[]
[]
[]
[]
[]
[]
[]
[]
[]
[]
[]
[]
[]
[]
[]
[]
[]
[]
[]
[]
[]
[]
[]
[]
[]
[]
[]
[]
[]
[]
[]
[]
[]
[]
[]
[]
[]
[]
[]
[]
[]
[]
[]
[]
[]
[]
[]
[]
[]
[]
[]
[]
[]
[]
[]
[]
[]
[]
[]
[]
[]
[]
[]
[]
[]
[]
[]
[]
[]
[]
[]
[]
[]
[]
[]
[]
[]
[]
[]
[]
[]
[]
[]
[]
[]
[]
[]
[]
[]
[]
[]
[]
[]
[]
[]
[]
[]
[]
[]
[]
[]
[]
[]
[]
[]
[]
[]
[]
[]
[]
[]
[]
[]
[]
[]
[]
[]
[]
[]
[]
[]
[]
[]
[]
[]
[]
[]
[]
[]
[]
[]
[]
[]
[]
[]
[]
[]
[]
[]
[]
[]
[]
[]
[]
[]
[]
[]
[]
[]
[]
[]
[]
[]
[]
[]
[]
[]
[]
[]
[]
[]
[]
[]
[]
[]
[]
[null,null,null,null,"KWITANTIE"]
[]
[]
[]
[]
[null,null,null,null,null,"Aicha Mohamadi",null,"Ontvangen van:",null,null,null,"عليك فقط الإختيار من القائمة المنسدلة والباقى على الإكسيل"]
[]
[]
[null,null,null,null,null,{"$f":"IFERROR(VLOOKUP($F$841,قائمة!$A$11:$J$1400,2,0),\"\")","v":"Lesgeld"},null,"Omschrijving:"]
[]
[null,null,{"$f":"IFERROR(VLOOKUP($F$841,قائمة!$A$11:$J$1400,5,0),\"\")","v":1},"Niveau:",null,null,{"$f":"IFERROR(VLOOKUP($F$841,قائمة!$A$11:$J$1400,3,0),\"\")","v":"Lahcen"},"Kassier:"]
[{"$f":"IFERROR(VLOOKUP($F$841,قائمة!$A$11:$J$1400,7,0),\"\")","v":698765430},null,null,"Telefoonnummer:"]
[{"$f":"IFERROR(VLOOKUP($F$841,قائمة!$A$11:$J$1400,6,0),\"\")","v":"inf@hotmail.com"},null,null,"E-mail:",null,{"$f":"IFERROR(VLOOKUP($F$841,قائمة!$A$11:$J$1400,4,0),\"\")","v":"Lahcen"},null,"Handtekening van kassier:"]
[null,null,{"$f":"IFERROR(VLOOKUP($F$841,قائمة!$A$11:$J$1400,8,0),\"\")","v":"2019-07-08"},"Datum:"]
[null,null,{"$f":"IFERROR(VLOOKUP($F$841,قائمة!$A$11:$J$1400,9,0),\"\")","v":45},"Bedrag:"]
[]
[]
[{"$f":"CurrText($C$850,0,\"يورو\",\"يوروهات\",0,\"سنت\",\"سنتات\",2)","v":"ОгУЙ жГСИЪжд يوروЗр ЭЮШ бЗЫнС"}]
[null,null,null,"Plaats:"]

{"sheet":"قائمة","index":1,"n_rows":367,"n_cols":26,"rows_kept":367,"cut":false,"hidden":false,"merged":[]}
[]
[]
[]
[]
[]
[]
[]
[]
[]
["Onvangen van:","Omchrijving","Kassier","Handtekening van kassier","Niiveau","E-mail","telefoonnummer","Datum","Bedrag","الرقم الترتيبي"]
["Aicha Mohamadi","Lesgeld","Lahcen","Lahcen",1,"inf@hotmail.com",698765430,"2019-07-08",45,1,null,null,null,null,null,null,null,null,null,null,null,null,null,null,null,{"$f":"IFERROR(INDEX($A$11:$A$1500,MATCH(0,COUNTIF($Z$10:Z10,$A$11:$A$1500),0)),\"\")","v":"Aicha Mohamadi"}]
["Ali Nouri","boeken","Brahim","Brahim Naji",3,"Onderwijs@hotmail.com",6785432109,"2019-07-08",150,2,null,null,null,null,null,null,null,null,null,null,null,null,null,null,null,{"$f":"IFERROR(INDEX($A$11:$A$1500,MATCH(0,COUNTIF($Z$10:Z11,$A$11:$A$1500),0)),\"\")","v":"Ali Nouri"}]
["Tilzati","Boeken","Brahim","Brahim",3,"inf@hotmail.com",643526178,"2019-07-09",78,3,null,null,null,null,null,null,null,null,null,null,null,null,null,null,null,{"$f":"IFERROR(INDEX($A$11:$A$1500,MATCH(0,COUNTIF($Z$10:Z12,$A$11:$A$1500),0)),\"\")","v":"Tilzati"}]
[null,null,null,null,null,null,null,null,null,4,null,null,null,null,null,null,null,null,null,null,null,null,null,null,null,{"$f":"IFERROR(INDEX($A$11:$A$1500,MATCH(0,COUNTIF($Z$10:Z13,$A$11:$A$1500),0)),\"\")","v":0}]
[null,null,null,null,null,null,null,null,null,5,null,null,null,null,null,null,null,null,null,null,null,null,null,null,null,{"$f":"IFERROR(INDEX($A$11:$A$1500,MATCH(0,COUNTIF($Z$10:Z14,$A$11:$A$1500),0)),\"\")","v":""}]
[null,null,null,null,null,null,null,null,null,6,null,null,null,null,null,null,null,null,null,null,null,null,null,null,null,{"$f":"IFERROR(INDEX($A$11:$A$1500,MATCH(0,COUNTIF($Z$10:Z15,$A$11:$A$1500),0)),\"\")","v":""}]
[null,null,null,null,null,null,null,null,null,7,null,null,null,null,null,null,null,null,null,null,null,null,null,null,null,{"$f":"IFERROR(INDEX($A$11:$A$1500,MATCH(0,COUNTIF($Z$10:Z16,$A$11:$A$1500),0)),\"\")","v":""}]
[null,null,null,null,null,null,null,null,null,8,null,null,null,null,null,null,null,null,null,null,null,null,null,null,null,{"$f":"IFERROR(INDEX($A$11:$A$1500,MATCH(0,COUNTIF($Z$10:Z17,$A$11:$A$1500),0)),\"\")","v":""}]
[null,null,null,null,null,null,null,null,null,9,null,null,null,null,null,null,null,null,null,null,null,null,null,null,null,{"$f":"IFERROR(INDEX($A$11:$A$1500,MATCH(0,COUNTIF($Z$10:Z18,$A$11:$A$1500),0)),\"\")","v":""}]
[null,null,null,null,null,null,null,null,null,10,null,null,null,null,null,null,null,null,null,null,null,null,null,null,null,{"$f":"IFERROR(INDEX($A$11:$A$1500,MATCH(0,COUNTIF($Z$10:Z19,$A$11:$A$1500),0)),\"\")","v":""}]
[null,null,null,null,null,null,null,null,null,11,null,null,null,null,null,null,null,null,null,null,null,null,null,null,null,{"$f":"IFERROR(INDEX($A$11:$A$1500,MATCH(0,COUNTIF($Z$10:Z20,$A$11:$A$1500),0)),\"\")","v":""}]
[null,null,null,null,null,null,null,null,null,12,null,null,null,null,null,null,null,null,null,null,null,null,null,null,null,{"$f":"IFERROR(INDEX($A$11:$A$1500,MATCH(0,COUNTIF($Z$10:Z21,$A$11:$A$1500),0)),\"\")","v":""}]
[null,null,null,null,null,null,null,null,null,13,null,null,null,null,null,null,null,null,null,null,null,null,null,null,null,{"$f":"IFERROR(INDEX($A$11:$A$1500,MATCH(0,COUNTIF($Z$10:Z22,$A$11:$A$1500),0)),\"\")","v":""}]
[null,null,null,null,null,null,null,null,null,14,null,null,null,null,null,null,null,null,null,null,null,null,null,null,null,{"$f":"IFERROR(INDEX($A$11:$A$1500,MATCH(0,COUNTIF($Z$10:Z23,$A$11:$A$1500),0)),\"\")","v":""}]
[null,null,null,null,null,null,null,null,null,15,null,null,null,null,null,null,null,null,null,null,null,null,null,null,null,{"$f":"IFERROR(INDEX($A$11:$A$1500,MATCH(0,COUNTIF($Z$10:Z24,$A$11:$A$1500),0)),\"\")","v":""}]
[null,null,null,null,null,null,null,null,null,16,null,null,null,null,null,null,null,null,null,null,null,null,null,null,null,{"$f":"IFERROR(INDEX($A$11:$A$1500,MATCH(0,COUNTIF($Z$10:Z25,$A$11:$A$1500),0)),\"\")","v":""}]
[null,null,null,null,null,null,null,null,null,17,null,null,null,null,null,null,null,null,null,null,null,null,null,null,null,{"$f":"IFERROR(INDEX($A$11:$A$1500,MATCH(0,COUNTIF($Z$10:Z26,$A$11:$A$1500),0)),\"\")","v":""}]
[null,null,null,null,null,null,null,null,null,18,null,null,null,null,null,null,null,null,null,null,null,null,null,null,null,{"$f":"IFERROR(INDEX($A$11:$A$1500,MATCH(0,COUNTIF($Z$10:Z27,$A$11:$A$1500),0)),\"\")","v":""}]
[null,null,null,null,null,null,null,null,null,19,null,null,null,null,null,null,null,null,null,null,null,null,null,null,null,{"$f":"IFERROR(INDEX($A$11:$A$1500,MATCH(0,COUNTIF($Z$10:Z28,$A$11:$A$1500),0)),\"\")","v":""}]
[null,null,null,null,null,null,null,null,null,20,null,null,null,null,null,null,null,null,null,null,null,null,null,null,null,{"$f":"IFERROR(INDEX($A$11:$A$1500,MATCH(0,COUNTIF($Z$10:Z29,$A$11:$A$1500),0)),\"\")","v":""}]
[null,null,null,null,null,null,null,null,null,21,null,null,null,null,null,null,null,null,null,null,null,null,null,null,null,{"$f":"IFERROR(INDEX($A$11:$A$1500,MATCH(0,COUNTIF($Z$10:Z30,$A$11:$A$1500),0)),\"\")","v":""}]
[null,null,null,null,null,null,null,null,null,22,null,null,null,null,null,null,null,null,null,null,null,null,null,null,null,{"$f":"IFERROR(INDEX($A$11:$A$1500,MATCH(0,COUNTIF($Z$10:Z31,$A$11:$A$1500),0)),\"\")","v":""}]
[null,null,null,null,null,null,null,null,null,23,null,null,null,null,null,null,null,null,null,null,null,null,null,null,null,{"$f":"IFERROR(INDEX($A$11:$A$1500,MATCH(0,COUNTIF($Z$10:Z32,$A$11:$A$1500),0)),\"\")","v":""}]
[null,null,null,null,null,null,null,null,null,24,null,null,null,null,null,null,null,null,null,null,null,null,null,null,null,{"$f":"IFERROR(INDEX($A$11:$A$1500,MATCH(0,COUNTIF($Z$10:Z33,$A$11:$A$1500),0)),\"\")","v":""}]
[null,null,null,null,null,null,null,null,null,25,null,null,null,null,null,null,null,null,null,null,null,null,null,null,null,{"$f":"IFERROR(INDEX($A$11:$A$1500,MATCH(0,COUNTIF($Z$10:Z34,$A$11:$A$1500),0)),\"\")","v":""}]
[null,null,null,null,null,null,null,null,null,26,null,null,null,null,null,null,null,null,null,null,null,null,null,null,null,{"$f":"IFERROR(INDEX($A$11:$A$1500,MATCH(0,COUNTIF($Z$10:Z35,$A$11:$A$1500),0)),\"\")","v":""}]
[null,null,null,null,null,null,null,null,null,27,null,null,null,null,null,null,null,null,null,null,null,null,null,null,null,{"$f":"IFERROR(INDEX($A$11:$A$1500,MATCH(0,COUNTIF($Z$10:Z36,$A$11:$A$1500),0)),\"\")","v":""}]
[null,null,null,null,null,null,null,null,null,28,null,null,null,null,null,null,null,null,null,null,null,null,null,null,null,{"$f":"IFERROR(INDEX($A$11:$A$1500,MATCH(0,COUNTIF($Z$10:Z37,$A$11:$A$1500),0)),\"\")","v":""}]
[null,null,null,null,null,null,null,null,null,29,null,null,null,null,null,null,null,null,null,null,null,null,null,null,null,{"$f":"IFERROR(INDEX($A$11:$A$1500,MATCH(0,COUNTIF($Z$10:Z38,$A$11:$A$1500),0)),\"\")","v":""}]
[null,null,null,null,null,null,null,null,null,30,null,null,null,null,null,null,null,null,null,null,null,null,null,null,null,{"$f":"IFERROR(INDEX($A$11:$A$1500,MATCH(0,COUNTIF($Z$10:Z39,$A$11:$A$1500),0)),\"\")","v":""}]
[null,null,null,null,null,null,null,null,null,31,null,null,null,null,null,null,null,null,null,null,null,null,null,null,null,{"$f":"IFERROR(INDEX($A$11:$A$1500,MATCH(0,COUNTIF($Z$10:Z40,$A$11:$A$1500),0)),\"\")","v":""}]
[null,null,null,null,null,null,null,null,null,32,null,null,null,null,null,null,null,null,null,null,null,null,null,null,null,{"$f":"IFERROR(INDEX($A$11:$A$1500,MATCH(0,COUNTIF($Z$10:Z41,$A$11:$A$1500),0)),\"\")","v":""}]
[null,null,null,null,null,null,null,null,null,33,null,null,null,null,null,null,null,null,null,null,null,null,null,null,null,{"$f":"IFERROR(INDEX($A$11:$A$1500,MATCH(0,COUNTIF($Z$10:Z42,$A$11:$A$1500),0)),\"\")","v":""}]
[null,null,null,null,null,null,null,null,null,34,null,null,null,null,null,null,null,null,null,null,null,null,null,null,null,{"$f":"IFERROR(INDEX($A$11:$A$1500,MATCH(0,COUNTIF($Z$10:Z43,$A$11:$A$1500),0)),\"\")","v":""}]
[null,null,null,null,null,null,null,null,null,35,null,null,null,null,null,null,null,null,null,null,null,null,null,null,null,{"$f":"IFERROR(INDEX($A$11:$A$1500,MATCH(0,COUNTIF($Z$10:Z44,$A$11:$A$1500),0)),\"\")","v":""}]
[null,null,null,null,null,null,null,null,null,36,null,null,null,null,null,null,null,null,null,null,null,null,null,null,null,{"$f":"IFERROR(INDEX($A$11:$A$1500,MATCH(0,COUNTIF($Z$10:Z45,$A$11:$A$1500),0)),\"\")","v":""}]
[null,null,null,null,null,null,null,null,null,37,null,null,null,null,null,null,null,null,null,null,null,null,null,null,null,{"$f":"IFERROR(INDEX($A$11:$A$1500,MATCH(0,COUNTIF($Z$10:Z46,$A$11:$A$1500),0)),\"\")","v":""}]
[null,null,null,null,null,null,null,null,null,38,null,null,null,null,null,null,null,null,null,null,null,null,null,null,null,{"$f":"IFERROR(INDEX($A$11:$A$1500,MATCH(0,COUNTIF($Z$10:Z47,$A$11:$A$1500),0)),\"\")","v":""}]
[null,null,null,null,null,null,null,null,null,39,null,null,null,null,null,null,null,null,null,null,null,null,null,null,null,{"$f":"IFERROR(INDEX($A$11:$A$1500,MATCH(0,COUNTIF($Z$10:Z48,$A$11:$A$1500),0)),\"\")","v":""}]
[null,null,null,null,null,null,null,null,null,40,null,null,null,null,null,null,null,null,null,null,null,null,null,null,null,{"$f":"IFERROR(INDEX($A$11:$A$1500,MATCH(0,COUNTIF($Z$10:Z49,$A$11:$A$1500),0)),\"\")","v":""}]
[null,null,null,null,null,null,null,null,null,41,null,null,null,null,null,null,null,null,null,null,null,null,null,null,null,{"$f":"IFERROR(INDEX($A$11:$A$1500,MATCH(0,COUNTIF($Z$10:Z50,$A$11:$A$1500),0)),\"\")","v":""}]
[null,null,null,null,null,null,null,null,null,42,null,null,null,null,null,null,null,null,null,null,null,null,null,null,null,{"$f":"IFERROR(INDEX($A$11:$A$1500,MATCH(0,COUNTIF($Z$10:Z51,$A$11:$A$1500),0)),\"\")","v":""}]
[null,null,null,null,null,null,null,null,null,43,null,null,null,null,null,null,null,null,null,null,null,null,null,null,null,{"$f":"IFERROR(INDEX($A$11:$A$1500,MATCH(0,COUNTIF($Z$10:Z52,$A$11:$A$1500),0)),\"\")","v":""}]
[null,null,null,null,null,null,null,null,null,44,null,null,null,null,null,null,null,null,null,null,null,null,null,null,null,{"$f":"IFERROR(INDEX($A$11:$A$1500,MATCH(0,COUNTIF($Z$10:Z53,$A$11:$A$1500),0)),\"\")","v":""}]
[null,null,null,null,null,null,null,null,null,45,null,null,null,null,null,null,null,null,null,null,null,null,null,null,null,{"$f":"IFERROR(INDEX($A$11:$A$1500,MATCH(0,COUNTIF($Z$10:Z54,$A$11:$A$1500),0)),\"\")","v":""}]
[null,null,null,null,null,null,null,null,null,46,null,null,null,null,null,null,null,null,null,null,null,null,null,null,null,{"$f":"IFERROR(INDEX($A$11:$A$1500,MATCH(0,COUNTIF($Z$10:Z55,$A$11:$A$1500),0)),\"\")","v":""}]
[null,null,null,null,null,null,null,null,null,47,null,null,null,null,null,null,null,null,null,null,null,null,null,null,null,{"$f":"IFERROR(INDEX($A$11:$A$1500,MATCH(0,COUNTIF($Z$10:Z56,$A$11:$A$1500),0)),\"\")","v":""}]
[null,null,null,null,null,null,null,null,null,48,null,null,null,null,null,null,null,null,null,null,null,null,null,null,null,{"$f":"IFERROR(INDEX($A$11:$A$1500,MATCH(0,COUNTIF($Z$10:Z57,$A$11:$A$1500),0)),\"\")","v":""}]
[null,null,null,null,null,null,null,null,null,49,null,null,null,null,null,null,null,null,null,null,null,null,null,null,null,{"$f":"IFERROR(INDEX($A$11:$A$1500,MATCH(0,COUNTIF($Z$10:Z58,$A$11:$A$1500),0)),\"\")","v":""}]
[null,null,null,null,null,null,null,null,null,50,null,null,null,null,null,null,null,null,null,null,null,null,null,null,null,{"$f":"IFERROR(INDEX($A$11:$A$1500,MATCH(0,COUNTIF($Z$10:Z59,$A$11:$A$1500),0)),\"\")","v":""}]
[null,null,null,null,null,null,null,null,null,51,null,null,null,null,null,null,null,null,null,null,null,null,null,null,null,{"$f":"IFERROR(INDEX($A$11:$A$1500,MATCH(0,COUNTIF($Z$10:Z60,$A$11:$A$1500),0)),\"\")","v":""}]
[null,null,null,null,null,null,null,null,null,52,null,null,null,null,null,null,null,null,null,null,null,null,null,null,null,{"$f":"IFERROR(INDEX($A$11:$A$1500,MATCH(0,COUNTIF($Z$10:Z61,$A$11:$A$1500),0)),\"\")","v":""}]
[null,null,null,null,null,null,null,null,null,53,null,null,null,null,null,null,null,null,null,null,null,null,null,null,null,{"$f":"IFERROR(INDEX($A$11:$A$1500,MATCH(0,COUNTIF($Z$10:Z62,$A$11:$A$1500),0)),\"\")","v":""}]
[null,null,null,null,null,null,null,null,null,54,null,null,null,null,null,null,null,null,null,null,null,null,null,null,null,{"$f":"IFERROR(INDEX($A$11:$A$1500,MATCH(0,COUNTIF($Z$10:Z63,$A$11:$A$1500),0)),\"\")","v":""}]
[null,null,null,null,null,null,null,null,null,55,null,null,null,null,null,null,null,null,null,null,null,null,null,null,null,{"$f":"IFERROR(INDEX($A$11:$A$1500,MATCH(0,COUNTIF($Z$10:Z64,$A$11:$A$1500),0)),\"\")","v":""}]
[null,null,null,null,null,null,null,null,null,56,null,null,null,null,null,null,null,null,null,null,null,null,null,null,null,{"$f":"IFERROR(INDEX($A$11:$A$1500,MATCH(0,COUNTIF($Z$10:Z65,$A$11:$A$1500),0)),\"\")","v":""}]
[null,null,null,null,null,null,null,null,null,57,null,null,null,null,null,null,null,null,null,null,null,null,null,null,null,{"$f":"IFERROR(INDEX($A$11:$A$1500,MATCH(0,COUNTIF($Z$10:Z66,$A$11:$A$1500),0)),\"\")","v":""}]
[null,null,null,null,null,null,null,null,null,58,null,null,null,null,null,null,null,null,null,null,null,null,null,null,null,{"$f":"IFERROR(INDEX($A$11:$A$1500,MATCH(0,COUNTIF($Z$10:Z67,$A$11:$A$1500),0)),\"\")","v":""}]
[null,null,null,null,null,null,null,null,null,59,null,null,null,null,null,null,null,null,null,null,null,null,null,null,null,{"$f":"IFERROR(INDEX($A$11:$A$1500,MATCH(0,COUNTIF($Z$10:Z68,$A$11:$A$1500),0)),\"\")","v":""}]
[null,null,null,null,null,null,null,null,null,60,null,null,null,null,null,null,null,null,null,null,null,null,null,null,null,{"$f":"IFERROR(INDEX($A$11:$A$1500,MATCH(0,COUNTIF($Z$10:Z69,$A$11:$A$1500),0)),\"\")","v":""}]
[null,null,null,null,null,null,null,null,null,61,null,null,null,null,null,null,null,null,null,null,null,null,null,null,null,{"$f":"IFERROR(INDEX($A$11:$A$1500,MATCH(0,COUNTIF($Z$10:Z70,$A$11:$A$1500),0)),\"\")","v":""}]
[null,null,null,null,null,null,null,null,null,62,null,null,null,null,null,null,null,null,null,null,null,null,null,null,null,{"$f":"IFERROR(INDEX($A$11:$A$1500,MATCH(0,COUNTIF($Z$10:Z71,$A$11:$A$1500),0)),\"\")","v":""}]
[null,null,null,null,null,null,null,null,null,63,null,null,null,null,null,null,null,null,null,null,null,null,null,null,null,{"$f":"IFERROR(INDEX($A$11:$A$1500,MATCH(0,COUNTIF($Z$10:Z72,$A$11:$A$1500),0)),\"\")","v":""}]
[null,null,null,null,null,null,null,null,null,64,null,null,null,null,null,null,null,null,null,null,null,null,null,null,null,{"$f":"IFERROR(INDEX($A$11:$A$1500,MATCH(0,COUNTIF($Z$10:Z73,$A$11:$A$1500),0)),\"\")","v":""}]
[null,null,null,null,null,null,null,null,null,65,null,null,null,null,null,null,null,null,null,null,null,null,null,null,null,{"$f":"IFERROR(INDEX($A$11:$A$1500,MATCH(0,COUNTIF($Z$10:Z74,$A$11:$A$1500),0)),\"\")","v":""}]
[null,null,null,null,null,null,null,null,null,66,null,null,null,null,null,null,null,null,null,null,null,null,null,null,null,{"$f":"IFERROR(INDEX($A$11:$A$1500,MATCH(0,COUNTIF($Z$10:Z75,$A$11:$A$1500),0)),\"\")","v":""}]
[null,null,null,null,null,null,null,null,null,67,null,null,null,null,null,null,null,null,null,null,null,null,null,null,null,{"$f":"IFERROR(INDEX($A$11:$A$1500,MATCH(0,COUNTIF($Z$10:Z76,$A$11:$A$1500),0)),\"\")","v":""}]
[null,null,null,null,null,null,null,null,null,68,null,null,null,null,null,null,null,null,null,null,null,null,null,null,null,{"$f":"IFERROR(INDEX($A$11:$A$1500,MATCH(0,COUNTIF($Z$10:Z77,$A$11:$A$1500),0)),\"\")","v":""}]
[null,null,null,null,null,null,null,null,null,69,null,null,null,null,null,null,null,null,null,null,null,null,null,null,null,{"$f":"IFERROR(INDEX($A$11:$A$1500,MATCH(0,COUNTIF($Z$10:Z78,$A$11:$A$1500),0)),\"\")","v":""}]
[null,null,null,null,null,null,null,null,null,70,null,null,null,null,null,null,null,null,null,null,null,null,null,null,null,{"$f":"IFERROR(INDEX($A$11:$A$1500,MATCH(0,COUNTIF($Z$10:Z79,$A$11:$A$1500),0)),\"\")","v":""}]
[null,null,null,null,null,null,null,null,null,71,null,null,null,null,null,null,null,null,null,null,null,null,null,null,null,{"$f":"IFERROR(INDEX($A$11:$A$1500,MATCH(0,COUNTIF($Z$10:Z80,$A$11:$A$1500),0)),\"\")","v":""}]
[null,null,null,null,null,null,null,null,null,72,null,null,null,null,null,null,null,null,null,null,null,null,null,null,null,{"$f":"IFERROR(INDEX($A$11:$A$1500,MATCH(0,COUNTIF($Z$10:Z81,$A$11:$A$1500),0)),\"\")","v":""}]
[null,null,null,null,null,null,null,null,null,73,null,null,null,null,null,null,null,null,null,null,null,null,null,null,null,{"$f":"IFERROR(INDEX($A$11:$A$1500,MATCH(0,COUNTIF($Z$10:Z82,$A$11:$A$1500),0)),\"\")","v":""}]
[null,null,null,null,null,null,null,null,null,74,null,null,null,null,null,null,null,null,null,null,null,null,null,null,null,{"$f":"IFERROR(INDEX($A$11:$A$1500,MATCH(0,COUNTIF($Z$10:Z83,$A$11:$A$1500),0)),\"\")","v":""}]
[null,null,null,null,null,null,null,null,null,75,null,null,null,null,null,null,null,null,null,null,null,null,null,null,null,{"$f":"IFERROR(INDEX($A$11:$A$1500,MATCH(0,COUNTIF($Z$10:Z84,$A$11:$A$1500),0)),\"\")","v":""}]
[null,null,null,null,null,null,null,null,null,76,null,null,null,null,null,null,null,null,null,null,null,null,null,null,null,{"$f":"IFERROR(INDEX($A$11:$A$1500,MATCH(0,COUNTIF($Z$10:Z85,$A$11:$A$1500),0)),\"\")","v":""}]
[null,null,null,null,null,null,null,null,null,77,null,null,null,null,null,null,null,null,null,null,null,null,null,null,null,{"$f":"IFERROR(INDEX($A$11:$A$1500,MATCH(0,COUNTIF($Z$10:Z86,$A$11:$A$1500),0)),\"\")","v":""}]
[null,null,null,null,null,null,null,null,null,78,null,null,null,null,null,null,null,null,null,null,null,null,null,null,null,{"$f":"IFERROR(INDEX($A$11:$A$1500,MATCH(0,COUNTIF($Z$10:Z87,$A$11:$A$1500),0)),\"\")","v":""}]
[null,null,null,null,null,null,null,null,null,79,null,null,null,null,null,null,null,null,null,null,null,null,null,null,null,{"$f":"IFERROR(INDEX($A$11:$A$1500,MATCH(0,COUNTIF($Z$10:Z88,$A$11:$A$1500),0)),\"\")","v":""}]
[null,null,null,null,null,null,null,null,null,80,null,null,null,null,null,null,null,null,null,null,null,null,null,null,null,{"$f":"IFERROR(INDEX($A$11:$A$1500,MATCH(0,COUNTIF($Z$10:Z89,$A$11:$A$1500),0)),\"\")","v":""}]
[null,null,null,null,null,null,null,null,null,81,null,null,null,null,null,null,null,null,null,null,null,null,null,null,null,{"$f":"IFERROR(INDEX($A$11:$A$1500,MATCH(0,COUNTIF($Z$10:Z90,$A$11:$A$1500),0)),\"\")","v":""}]
[null,null,null,null,null,null,null,null,null,82,null,null,null,null,null,null,null,null,null,null,null,null,null,null,null,{"$f":"IFERROR(INDEX($A$11:$A$1500,MATCH(0,COUNTIF($Z$10:Z91,$A$11:$A$1500),0)),\"\")","v":""}]
[null,null,null,null,null,null,null,null,null,83,null,null,null,null,null,null,null,null,null,null,null,null,null,null,null,{"$f":"IFERROR(INDEX($A$11:$A$1500,MATCH(0,COUNTIF($Z$10:Z92,$A$11:$A$1500),0)),\"\")","v":""}]
[null,null,null,null,null,null,null,null,null,84,null,null,null,null,null,null,null,null,null,null,null,null,null,null,null,{"$f":"IFERROR(INDEX($A$11:$A$1500,MATCH(0,COUNTIF($Z$10:Z93,$A$11:$A$1500),0)),\"\")","v":""}]
[null,null,null,null,null,null,null,null,null,85,null,null,null,null,null,null,null,null,null,null,null,null,null,null,null,{"$f":"IFERROR(INDEX($A$11:$A$1500,MATCH(0,COUNTIF($Z$10:Z94,$A$11:$A$1500),0)),\"\")","v":""}]
[null,null,null,null,null,null,null,null,null,86,null,null,null,null,null,null,null,null,null,null,null,null,null,null,null,{"$f":"IFERROR(INDEX($A$11:$A$1500,MATCH(0,COUNTIF($Z$10:Z95,$A$11:$A$1500),0)),\"\")","v":""}]
[null,null,null,null,null,null,null,null,null,87,null,null,null,null,null,null,null,null,null,null,null,null,null,null,null,{"$f":"IFERROR(INDEX($A$11:$A$1500,MATCH(0,COUNTIF($Z$10:Z96,$A$11:$A$1500),0)),\"\")","v":""}]
[null,null,null,null,null,null,null,null,null,88,null,null,null,null,null,null,null,null,null,null,null,null,null,null,null,{"$f":"IFERROR(INDEX($A$11:$A$1500,MATCH(0,COUNTIF($Z$10:Z97,$A$11:$A$1500),0)),\"\")","v":""}]
[null,null,null,null,null,null,null,null,null,89,null,null,null,null,null,null,null,null,null,null,null,null,null,null,null,{"$f":"IFERROR(INDEX($A$11:$A$1500,MATCH(0,COUNTIF($Z$10:Z98,$A$11:$A$1500),0)),\"\")","v":""}]
[null,null,null,null,null,null,null,null,null,90,null,null,null,null,null,null,null,null,null,null,null,null,null,null,null,{"$f":"IFERROR(INDEX($A$11:$A$1500,MATCH(0,COUNTIF($Z$10:Z99,$A$11:$A$1500),0)),\"\")","v":""}]
[null,null,null,null,null,null,null,null,null,91,null,null,null,null,null,null,null,null,null,null,null,null,null,null,null,{"$f":"IFERROR(INDEX($A$11:$A$1500,MATCH(0,COUNTIF($Z$10:Z100,$A$11:$A$1500),0)),\"\")","v":""}]
[null,null,null,null,null,null,null,null,null,92,null,null,null,null,null,null,null,null,null,null,null,null,null,null,null,{"$f":"IFERROR(INDEX($A$11:$A$1500,MATCH(0,COUNTIF($Z$10:Z101,$A$11:$A$1500),0)),\"\")","v":""}]
[null,null,null,null,null,null,null,null,null,93,null,null,null,null,null,null,null,null,null,null,null,null,null,null,null,{"$f":"IFERROR(INDEX($A$11:$A$1500,MATCH(0,COUNTIF($Z$10:Z102,$A$11:$A$1500),0)),\"\")","v":""}]
[null,null,null,null,null,null,null,null,null,94,null,null,null,null,null,null,null,null,null,null,null,null,null,null,null,{"$f":"IFERROR(INDEX($A$11:$A$1500,MATCH(0,COUNTIF($Z$10:Z103,$A$11:$A$1500),0)),\"\")","v":""}]
[null,null,null,null,null,null,null,null,null,95,null,null,null,null,null,null,null,null,null,null,null,null,null,null,null,{"$f":"IFERROR(INDEX($A$11:$A$1500,MATCH(0,COUNTIF($Z$10:Z104,$A$11:$A$1500),0)),\"\")","v":""}]
[null,null,null,null,null,null,null,null,null,96,null,null,null,null,null,null,null,null,null,null,null,null,null,null,null,{"$f":"IFERROR(INDEX($A$11:$A$1500,MATCH(0,COUNTIF($Z$10:Z105,$A$11:$A$1500),0)),\"\")","v":""}]
[null,null,null,null,null,null,null,null,null,97,null,null,null,null,null,null,null,null,null,null,null,null,null,null,null,{"$f":"IFERROR(INDEX($A$11:$A$1500,MATCH(0,COUNTIF($Z$10:Z106,$A$11:$A$1500),0)),\"\")","v":""}]
[null,null,null,null,null,null,null,null,null,98,null,null,null,null,null,null,null,null,null,null,null,null,null,null,null,{"$f":"IFERROR(INDEX($A$11:$A$1500,MATCH(0,COUNTIF($Z$10:Z107,$A$11:$A$1500),0)),\"\")","v":""}]
[null,null,null,null,null,null,null,null,null,99,null,null,null,null,null,null,null,null,null,null,null,null,null,null,null,{"$f":"IFERROR(INDEX($A$11:$A$1500,MATCH(0,COUNTIF($Z$10:Z108,$A$11:$A$1500),0)),\"\")","v":""}]
[null,null,null,null,null,null,null,null,null,100,null,null,null,null,null,null,null,null,null,null,null,null,null,null,null,{"$f":"IFERROR(INDEX($A$11:$A$1500,MATCH(0,COUNTIF($Z$10:Z109,$A$11:$A$1500),0)),\"\")","v":""}]
[null,null,null,null,null,null,null,null,null,101,null,null,null,null,null,null,null,null,null,null,null,null,null,null,null,{"$f":"IFERROR(INDEX($A$11:$A$1500,MATCH(0,COUNTIF($Z$10:Z110,$A$11:$A$1500),0)),\"\")","v":""}]
[null,null,null,null,null,null,null,null,null,102,null,null,null,null,null,null,null,null,null,null,null,null,null,null,null,{"$f":"IFERROR(INDEX($A$11:$A$1500,MATCH(0,COUNTIF($Z$10:Z111,$A$11:$A$1500),0)),\"\")","v":""}]
[null,null,null,null,null,null,null,null,null,103,null,null,null,null,null,null,null,null,null,null,null,null,null,null,null,{"$f":"IFERROR(INDEX($A$11:$A$1500,MATCH(0,COUNTIF($Z$10:Z112,$A$11:$A$1500),0)),\"\")","v":""}]
[null,null,null,null,null,null,null,null,null,104,null,null,null,null,null,null,null,null,null,null,null,null,null,null,null,{"$f":"IFERROR(INDEX($A$11:$A$1500,MATCH(0,COUNTIF($Z$10:Z113,$A$11:$A$1500),0)),\"\")","v":""}]
[null,null,null,null,null,null,null,null,null,105,null,null,null,null,null,null,null,null,null,null,null,null,null,null,null,{"$f":"IFERROR(INDEX($A$11:$A$1500,MATCH(0,COUNTIF($Z$10:Z114,$A$11:$A$1500),0)),\"\")","v":""}]
[null,null,null,null,null,null,null,null,null,106,null,null,null,null,null,null,null,null,null,null,null,null,null,null,null,{"$f":"IFERROR(INDEX($A$11:$A$1500,MATCH(0,COUNTIF($Z$10:Z115,$A$11:$A$1500),0)),\"\")","v":""}]
[null,null,null,null,null,null,null,null,null,107,null,null,null,null,null,null,null,null,null,null,null,null,null,null,null,{"$f":"IFERROR(INDEX($A$11:$A$1500,MATCH(0,COUNTIF($Z$10:Z116,$A$11:$A$1500),0)),\"\")","v":""}]
[null,null,null,null,null,null,null,null,null,108,null,null,null,null,null,null,null,null,null,null,null,null,null,null,null,{"$f":"IFERROR(INDEX($A$11:$A$1500,MATCH(0,COUNTIF($Z$10:Z117,$A$11:$A$1500),0)),\"\")","v":""}]
[null,null,null,null,null,null,null,null,null,109,null,null,null,null,null,null,null,null,null,null,null,null,null,null,null,{"$f":"IFERROR(INDEX($A$11:$A$1500,MATCH(0,COUNTIF($Z$10:Z118,$A$11:$A$1500),0)),\"\")","v":""}]
[null,null,null,null,null,null,null,null,null,110,null,null,null,null,null,null,null,null,null,null,null,null,null,null,null,{"$f":"IFERROR(INDEX($A$11:$A$1500,MATCH(0,COUNTIF($Z$10:Z119,$A$11:$A$1500),0)),\"\")","v":""}]
[null,null,null,null,null,null,null,null,null,111,null,null,null,null,null,null,null,null,null,null,null,null,null,null,null,{"$f":"IFERROR(INDEX($A$11:$A$1500,MATCH(0,COUNTIF($Z$10:Z120,$A$11:$A$1500),0)),\"\")","v":""}]
[null,null,null,null,null,null,null,null,null,112,null,null,null,null,null,null,null,null,null,null,null,null,null,null,null,{"$f":"IFERROR(INDEX($A$11:$A$1500,MATCH(0,COUNTIF($Z$10:Z121,$A$11:$A$1500),0)),\"\")","v":""}]
[null,null,null,null,null,null,null,null,null,113,null,null,null,null,null,null,null,null,null,null,null,null,null,null,null,{"$f":"IFERROR(INDEX($A$11:$A$1500,MATCH(0,COUNTIF($Z$10:Z122,$A$11:$A$1500),0)),\"\")","v":""}]
[null,null,null,null,null,null,null,null,null,114,null,null,null,null,null,null,null,null,null,null,null,null,null,null,null,{"$f":"IFERROR(INDEX($A$11:$A$1500,MATCH(0,COUNTIF($Z$10:Z123,$A$11:$A$1500),0)),\"\")","v":""}]
[null,null,null,null,null,null,null,null,null,115,null,null,null,null,null,null,null,null,null,null,null,null,null,null,null,{"$f":"IFERROR(INDEX($A$11:$A$1500,MATCH(0,COUNTIF($Z$10:Z124,$A$11:$A$1500),0)),\"\")","v":""}]
[null,null,null,null,null,null,null,null,null,116,null,null,null,null,null,null,null,null,null,null,null,null,null,null,null,{"$f":"IFERROR(INDEX($A$11:$A$1500,MATCH(0,COUNTIF($Z$10:Z125,$A$11:$A$1500),0)),\"\")","v":""}]
[null,null,null,null,null,null,null,null,null,117,null,null,null,null,null,null,null,null,null,null,null,null,null,null,null,{"$f":"IFERROR(INDEX($A$11:$A$1500,MATCH(0,COUNTIF($Z$10:Z126,$A$11:$A$1500),0)),\"\")","v":""}]
[null,null,null,null,null,null,null,null,null,118,null,null,null,null,null,null,null,null,null,null,null,null,null,null,null,{"$f":"IFERROR(INDEX($A$11:$A$1500,MATCH(0,COUNTIF($Z$10:Z127,$A$11:$A$1500),0)),\"\")","v":""}]
[null,null,null,null,null,null,null,null,null,119,null,null,null,null,null,null,null,null,null,null,null,null,null,null,null,{"$f":"IFERROR(INDEX($A$11:$A$1500,MATCH(0,COUNTIF($Z$10:Z128,$A$11:$A$1500),0)),\"\")","v":""}]
[null,null,null,null,null,null,null,null,null,120,null,null,null,null,null,null,null,null,null,null,null,null,null,null,null,{"$f":"IFERROR(INDEX($A$11:$A$1500,MATCH(0,COUNTIF($Z$10:Z129,$A$11:$A$1500),0)),\"\")","v":""}]
[null,null,null,null,null,null,null,null,null,121,null,null,null,null,null,null,null,null,null,null,null,null,null,null,null,{"$f":"IFERROR(INDEX($A$11:$A$1500,MATCH(0,COUNTIF($Z$10:Z130,$A$11:$A$1500),0)),\"\")","v":""}]
[null,null,null,null,null,null,null,null,null,122,null,null,null,null,null,null,null,null,null,null,null,null,null,null,null,{"$f":"IFERROR(INDEX($A$11:$A$1500,MATCH(0,COUNTIF($Z$10:Z131,$A$11:$A$1500),0)),\"\")","v":""}]
[null,null,null,null,null,null,null,null,null,123,null,null,null,null,null,null,null,null,null,null,null,null,null,null,null,{"$f":"IFERROR(INDEX($A$11:$A$1500,MATCH(0,COUNTIF($Z$10:Z132,$A$11:$A$1500),0)),\"\")","v":""}]
[null,null,null,null,null,null,null,null,null,124,null,null,null,null,null,null,null,null,null,null,null,null,null,null,null,{"$f":"IFERROR(INDEX($A$11:$A$1500,MATCH(0,COUNTIF($Z$10:Z133,$A$11:$A$1500),0)),\"\")","v":""}]
[null,null,null,null,null,null,null,null,null,125,null,null,null,null,null,null,null,null,null,null,null,null,null,null,null,{"$f":"IFERROR(INDEX($A$11:$A$1500,MATCH(0,COUNTIF($Z$10:Z134,$A$11:$A$1500),0)),\"\")","v":""}]
[null,null,null,null,null,null,null,null,null,126,null,null,null,null,null,null,null,null,null,null,null,null,null,null,null,{"$f":"IFERROR(INDEX($A$11:$A$1500,MATCH(0,COUNTIF($Z$10:Z135,$A$11:$A$1500),0)),\"\")","v":""}]
[null,null,null,null,null,null,null,null,null,127,null,null,null,null,null,null,null,null,null,null,null,null,null,null,null,{"$f":"IFERROR(INDEX($A$11:$A$1500,MATCH(0,COUNTIF($Z$10:Z136,$A$11:$A$1500),0)),\"\")","v":""}]
[null,null,null,null,null,null,null,null,null,128,null,null,null,null,null,null,null,null,null,null,null,null,null,null,null,{"$f":"IFERROR(INDEX($A$11:$A$1500,MATCH(0,COUNTIF($Z$10:Z137,$A$11:$A$1500),0)),\"\")","v":""}]
[null,null,null,null,null,null,null,null,null,129,null,null,null,null,null,null,null,null,null,null,null,null,null,null,null,{"$f":"IFERROR(INDEX($A$11:$A$1500,MATCH(0,COUNTIF($Z$10:Z138,$A$11:$A$1500),0)),\"\")","v":""}]
[null,null,null,null,null,null,null,null,null,130,null,null,null,null,null,null,null,null,null,null,null,null,null,null,null,{"$f":"IFERROR(INDEX($A$11:$A$1500,MATCH(0,COUNTIF($Z$10:Z139,$A$11:$A$1500),0)),\"\")","v":""}]
[null,null,null,null,null,null,null,null,null,131,null,null,null,null,null,null,null,null,null,null,null,null,null,null,null,{"$f":"IFERROR(INDEX($A$11:$A$1500,MATCH(0,COUNTIF($Z$10:Z140,$A$11:$A$1500),0)),\"\")","v":""}]
[null,null,null,null,null,null,null,null,null,132,null,null,null,null,null,null,null,null,null,null,null,null,null,null,null,{"$f":"IFERROR(INDEX($A$11:$A$1500,MATCH(0,COUNTIF($Z$10:Z141,$A$11:$A$1500),0)),\"\")","v":""}]
[null,null,null,null,null,null,null,null,null,133,null,null,null,null,null,null,null,null,null,null,null,null,null,null,null,{"$f":"IFERROR(INDEX($A$11:$A$1500,MATCH(0,COUNTIF($Z$10:Z142,$A$11:$A$1500),0)),\"\")","v":""}]
[null,null,null,null,null,null,null,null,null,134,null,null,null,null,null,null,null,null,null,null,null,null,null,null,null,{"$f":"IFERROR(INDEX($A$11:$A$1500,MATCH(0,COUNTIF($Z$10:Z143,$A$11:$A$1500),0)),\"\")","v":""}]
[null,null,null,null,null,null,null,null,null,135,null,null,null,null,null,null,null,null,null,null,null,null,null,null,null,{"$f":"IFERROR(INDEX($A$11:$A$1500,MATCH(0,COUNTIF($Z$10:Z144,$A$11:$A$1500),0)),\"\")","v":""}]
[null,null,null,null,null,null,null,null,null,136,null,null,null,null,null,null,null,null,null,null,null,null,null,null,null,{"$f":"IFERROR(INDEX($A$11:$A$1500,MATCH(0,COUNTIF($Z$10:Z145,$A$11:$A$1500),0)),\"\")","v":""}]
[null,null,null,null,null,null,null,null,null,137,null,null,null,null,null,null,null,null,null,null,null,null,null,null,null,{"$f":"IFERROR(INDEX($A$11:$A$1500,MATCH(0,COUNTIF($Z$10:Z146,$A$11:$A$1500),0)),\"\")","v":""}]
[null,null,null,null,null,null,null,null,null,138,null,null,null,null,null,null,null,null,null,null,null,null,null,null,null,{"$f":"IFERROR(INDEX($A$11:$A$1500,MATCH(0,COUNTIF($Z$10:Z147,$A$11:$A$1500),0)),\"\")","v":""}]
[null,null,null,null,null,null,null,null,null,139,null,null,null,null,null,null,null,null,null,null,null,null,null,null,null,{"$f":"IFERROR(INDEX($A$11:$A$1500,MATCH(0,COUNTIF($Z$10:Z148,$A$11:$A$1500),0)),\"\")","v":""}]
[null,null,null,null,null,null,null,null,null,140,null,null,null,null,null,null,null,null,null,null,null,null,null,null,null,{"$f":"IFERROR(INDEX($A$11:$A$1500,MATCH(0,COUNTIF($Z$10:Z149,$A$11:$A$1500),0)),\"\")","v":""}]
[null,null,null,null,null,null,null,null,null,141,null,null,null,null,null,null,null,null,null,null,null,null,null,null,null,{"$f":"IFERROR(INDEX($A$11:$A$1500,MATCH(0,COUNTIF($Z$10:Z150,$A$11:$A$1500),0)),\"\")","v":""}]
[null,null,null,null,null,null,null,null,null,142,null,null,null,null,null,null,null,null,null,null,null,null,null,null,null,{"$f":"IFERROR(INDEX($A$11:$A$1500,MATCH(0,COUNTIF($Z$10:Z151,$A$11:$A$1500),0)),\"\")","v":""}]
[null,null,null,null,null,null,null,null,null,143,null,null,null,null,null,null,null,null,null,null,null,null,null,null,null,{"$f":"IFERROR(INDEX($A$11:$A$1500,MATCH(0,COUNTIF($Z$10:Z152,$A$11:$A$1500),0)),\"\")","v":""}]
[null,null,null,null,null,null,null,null,null,144,null,null,null,null,null,null,null,null,null,null,null,null,null,null,null,{"$f":"IFERROR(INDEX($A$11:$A$1500,MATCH(0,COUNTIF($Z$10:Z153,$A$11:$A$1500),0)),\"\")","v":""}]
[null,null,null,null,null,null,null,null,null,145,null,null,null,null,null,null,null,null,null,null,null,null,null,null,null,{"$f":"IFERROR(INDEX($A$11:$A$1500,MATCH(0,COUNTIF($Z$10:Z154,$A$11:$A$1500),0)),\"\")","v":""}]
[null,null,null,null,null,null,null,null,null,146,null,null,null,null,null,null,null,null,null,null,null,null,null,null,null,{"$f":"IFERROR(INDEX($A$11:$A$1500,MATCH(0,COUNTIF($Z$10:Z155,$A$11:$A$1500),0)),\"\")","v":""}]
[null,null,null,null,null,null,null,null,null,147,null,null,null,null,null,null,null,null,null,null,null,null,null,null,null,{"$f":"IFERROR(INDEX($A$11:$A$1500,MATCH(0,COUNTIF($Z$10:Z156,$A$11:$A$1500),0)),\"\")","v":""}]
[null,null,null,null,null,null,null,null,null,148,null,null,null,null,null,null,null,null,null,null,null,null,null,null,null,{"$f":"IFERROR(INDEX($A$11:$A$1500,MATCH(0,COUNTIF($Z$10:Z157,$A$11:$A$1500),0)),\"\")","v":""}]
[null,null,null,null,null,null,null,null,null,149,null,null,null,null,null,null,null,null,null,null,null,null,null,null,null,{"$f":"IFERROR(INDEX($A$11:$A$1500,MATCH(0,COUNTIF($Z$10:Z158,$A$11:$A$1500),0)),\"\")","v":""}]
[null,null,null,null,null,null,null,null,null,150,null,null,null,null,null,null,null,null,null,null,null,null,null,null,null,{"$f":"IFERROR(INDEX($A$11:$A$1500,MATCH(0,COUNTIF($Z$10:Z159,$A$11:$A$1500),0)),\"\")","v":""}]
[null,null,null,null,null,null,null,null,null,151,null,null,null,null,null,null,null,null,null,null,null,null,null,null,null,{"$f":"IFERROR(INDEX($A$11:$A$1500,MATCH(0,COUNTIF($Z$10:Z160,$A$11:$A$1500),0)),\"\")","v":""}]
[null,null,null,null,null,null,null,null,null,152,null,null,null,null,null,null,null,null,null,null,null,null,null,null,null,{"$f":"IFERROR(INDEX($A$11:$A$1500,MATCH(0,COUNTIF($Z$10:Z161,$A$11:$A$1500),0)),\"\")","v":""}]
[null,null,null,null,null,null,null,null,null,153,null,null,null,null,null,null,null,null,null,null,null,null,null,null,null,{"$f":"IFERROR(INDEX($A$11:$A$1500,MATCH(0,COUNTIF($Z$10:Z162,$A$11:$A$1500),0)),\"\")","v":""}]
[null,null,null,null,null,null,null,null,null,154,null,null,null,null,null,null,null,null,null,null,null,null,null,null,null,{"$f":"IFERROR(INDEX($A$11:$A$1500,MATCH(0,COUNTIF($Z$10:Z163,$A$11:$A$1500),0)),\"\")","v":""}]
[null,null,null,null,null,null,null,null,null,155,null,null,null,null,null,null,null,null,null,null,null,null,null,null,null,{"$f":"IFERROR(INDEX($A$11:$A$1500,MATCH(0,COUNTIF($Z$10:Z164,$A$11:$A$1500),0)),\"\")","v":""}]
[null,null,null,null,null,null,null,null,null,156,null,null,null,null,null,null,null,null,null,null,null,null,null,null,null,{"$f":"IFERROR(INDEX($A$11:$A$1500,MATCH(0,COUNTIF($Z$10:Z165,$A$11:$A$1500),0)),\"\")","v":""}]
[null,null,null,null,null,null,null,null,null,157,null,null,null,null,null,null,null,null,null,null,null,null,null,null,null,{"$f":"IFERROR(INDEX($A$11:$A$1500,MATCH(0,COUNTIF($Z$10:Z166,$A$11:$A$1500),0)),\"\")","v":""}]
[null,null,null,null,null,null,null,null,null,158,null,null,null,null,null,null,null,null,null,null,null,null,null,null,null,{"$f":"IFERROR(INDEX($A$11:$A$1500,MATCH(0,COUNTIF($Z$10:Z167,$A$11:$A$1500),0)),\"\")","v":""}]
[null,null,null,null,null,null,null,null,null,159,null,null,null,null,null,null,null,null,null,null,null,null,null,null,null,{"$f":"IFERROR(INDEX($A$11:$A$1500,MATCH(0,COUNTIF($Z$10:Z168,$A$11:$A$1500),0)),\"\")","v":""}]
[null,null,null,null,null,null,null,null,null,160,null,null,null,null,null,null,null,null,null,null,null,null,null,null,null,{"$f":"IFERROR(INDEX($A$11:$A$1500,MATCH(0,COUNTIF($Z$10:Z169,$A$11:$A$1500),0)),\"\")","v":""}]
[null,null,null,null,null,null,null,null,null,161,null,null,null,null,null,null,null,null,null,null,null,null,null,null,null,{"$f":"IFERROR(INDEX($A$11:$A$1500,MATCH(0,COUNTIF($Z$10:Z170,$A$11:$A$1500),0)),\"\")","v":""}]
[null,null,null,null,null,null,null,null,null,162,null,null,null,null,null,null,null,null,null,null,null,null,null,null,null,{"$f":"IFERROR(INDEX($A$11:$A$1500,MATCH(0,COUNTIF($Z$10:Z171,$A$11:$A$1500),0)),\"\")","v":""}]
[null,null,null,null,null,null,null,null,null,163,null,null,null,null,null,null,null,null,null,null,null,null,null,null,null,{"$f":"IFERROR(INDEX($A$11:$A$1500,MATCH(0,COUNTIF($Z$10:Z172,$A$11:$A$1500),0)),\"\")","v":""}]
[null,null,null,null,null,null,null,null,null,164,null,null,null,null,null,null,null,null,null,null,null,null,null,null,null,{"$f":"IFERROR(INDEX($A$11:$A$1500,MATCH(0,COUNTIF($Z$10:Z173,$A$11:$A$1500),0)),\"\")","v":""}]
[null,null,null,null,null,null,null,null,null,165,null,null,null,null,null,null,null,null,null,null,null,null,null,null,null,{"$f":"IFERROR(INDEX($A$11:$A$1500,MATCH(0,COUNTIF($Z$10:Z174,$A$11:$A$1500),0)),\"\")","v":""}]
[null,null,null,null,null,null,null,null,null,166,null,null,null,null,null,null,null,null,null,null,null,null,null,null,null,{"$f":"IFERROR(INDEX($A$11:$A$1500,MATCH(0,COUNTIF($Z$10:Z175,$A$11:$A$1500),0)),\"\")","v":""}]
[null,null,null,null,null,null,null,null,null,167,null,null,null,null,null,null,null,null,null,null,null,null,null,null,null,{"$f":"IFERROR(INDEX($A$11:$A$1500,MATCH(0,COUNTIF($Z$10:Z176,$A$11:$A$1500),0)),\"\")","v":""}]
[null,null,null,null,null,null,null,null,null,168,null,null,null,null,null,null,null,null,null,null,null,null,null,null,null,{"$f":"IFERROR(INDEX($A$11:$A$1500,MATCH(0,COUNTIF($Z$10:Z177,$A$11:$A$1500),0)),\"\")","v":""}]
[null,null,null,null,null,null,null,null,null,169,null,null,null,null,null,null,null,null,null,null,null,null,null,null,null,{"$f":"IFERROR(INDEX($A$11:$A$1500,MATCH(0,COUNTIF($Z$10:Z178,$A$11:$A$1500),0)),\"\")","v":""}]
[null,null,null,null,null,null,null,null,null,170,null,null,null,null,null,null,null,null,null,null,null,null,null,null,null,{"$f":"IFERROR(INDEX($A$11:$A$1500,MATCH(0,COUNTIF($Z$10:Z179,$A$11:$A$1500),0)),\"\")","v":""}]
[null,null,null,null,null,null,null,null,null,171,null,null,null,null,null,null,null,null,null,null,null,null,null,null,null,{"$f":"IFERROR(INDEX($A$11:$A$1500,MATCH(0,COUNTIF($Z$10:Z180,$A$11:$A$1500),0)),\"\")","v":""}]
[null,null,null,null,null,null,null,null,null,172,null,null,null,null,null,null,null,null,null,null,null,null,null,null,null,{"$f":"IFERROR(INDEX($A$11:$A$1500,MATCH(0,COUNTIF($Z$10:Z181,$A$11:$A$1500),0)),\"\")","v":""}]
[null,null,null,null,null,null,null,null,null,173,null,null,null,null,null,null,null,null,null,null,null,null,null,null,null,{"$f":"IFERROR(INDEX($A$11:$A$1500,MATCH(0,COUNTIF($Z$10:Z182,$A$11:$A$1500),0)),\"\")","v":""}]
[null,null,null,null,null,null,null,null,null,174,null,null,null,null,null,null,null,null,null,null,null,null,null,null,null,{"$f":"IFERROR(INDEX($A$11:$A$1500,MATCH(0,COUNTIF($Z$10:Z183,$A$11:$A$1500),0)),\"\")","v":""}]
[null,null,null,null,null,null,null,null,null,175,null,null,null,null,null,null,null,null,null,null,null,null,null,null,null,{"$f":"IFERROR(INDEX($A$11:$A$1500,MATCH(0,COUNTIF($Z$10:Z184,$A$11:$A$1500),0)),\"\")","v":""}]
[null,null,null,null,null,null,null,null,null,176,null,null,null,null,null,null,null,null,null,null,null,null,null,null,null,{"$f":"IFERROR(INDEX($A$11:$A$1500,MATCH(0,COUNTIF($Z$10:Z185,$A$11:$A$1500),0)),\"\")","v":""}]
[null,null,null,null,null,null,null,null,null,177,null,null,null,null,null,null,null,null,null,null,null,null,null,null,null,{"$f":"IFERROR(INDEX($A$11:$A$1500,MATCH(0,COUNTIF($Z$10:Z186,$A$11:$A$1500),0)),\"\")","v":""}]
[null,null,null,null,null,null,null,null,null,178,null,null,null,null,null,null,null,null,null,null,null,null,null,null,null,{"$f":"IFERROR(INDEX($A$11:$A$1500,MATCH(0,COUNTIF($Z$10:Z187,$A$11:$A$1500),0)),\"\")","v":""}]
[null,null,null,null,null,null,null,null,null,179,null,null,null,null,null,null,null,null,null,null,null,null,null,null,null,{"$f":"IFERROR(INDEX($A$11:$A$1500,MATCH(0,COUNTIF($Z$10:Z188,$A$11:$A$1500),0)),\"\")","v":""}]
[null,null,null,null,null,null,null,null,null,180,null,null,null,null,null,null,null,null,null,null,null,null,null,null,null,{"$f":"IFERROR(INDEX($A$11:$A$1500,MATCH(0,COUNTIF($Z$10:Z189,$A$11:$A$1500),0)),\"\")","v":""}]
[null,null,null,null,null,null,null,null,null,181,null,null,null,null,null,null,null,null,null,null,null,null,null,null,null,{"$f":"IFERROR(INDEX($A$11:$A$1500,MATCH(0,COUNTIF($Z$10:Z190,$A$11:$A$1500),0)),\"\")","v":""}]
[null,null,null,null,null,null,null,null,null,182,null,null,null,null,null,null,null,null,null,null,null,null,null,null,null,{"$f":"IFERROR(INDEX($A$11:$A$1500,MATCH(0,COUNTIF($Z$10:Z191,$A$11:$A$1500),0)),\"\")","v":""}]
[null,null,null,null,null,null,null,null,null,183,null,null,null,null,null,null,null,null,null,null,null,null,null,null,null,{"$f":"IFERROR(INDEX($A$11:$A$1500,MATCH(0,COUNTIF($Z$10:Z192,$A$11:$A$1500),0)),\"\")","v":""}]
[null,null,null,null,null,null,null,null,null,184,null,null,null,null,null,null,null,null,null,null,null,null,null,null,null,{"$f":"IFERROR(INDEX($A$11:$A$1500,MATCH(0,COUNTIF($Z$10:Z193,$A$11:$A$1500),0)),\"\")","v":""}]
[null,null,null,null,null,null,null,null,null,185,null,null,null,null,null,null,null,null,null,null,null,null,null,null,null,{"$f":"IFERROR(INDEX($A$11:$A$1500,MATCH(0,COUNTIF($Z$10:Z194,$A$11:$A$1500),0)),\"\")","v":""}]
[null,null,null,null,null,null,null,null,null,186,null,null,null,null,null,null,null,null,null,null,null,null,null,null,null,{"$f":"IFERROR(INDEX($A$11:$A$1500,MATCH(0,COUNTIF($Z$10:Z195,$A$11:$A$1500),0)),\"\")","v":""}]
[null,null,null,null,null,null,null,null,null,187,null,null,null,null,null,null,null,null,null,null,null,null,null,null,null,{"$f":"IFERROR(INDEX($A$11:$A$1500,MATCH(0,COUNTIF($Z$10:Z196,$A$11:$A$1500),0)),\"\")","v":""}]
[null,null,null,null,null,null,null,null,null,188,null,null,null,null,null,null,null,null,null,null,null,null,null,null,null,{"$f":"IFERROR(INDEX($A$11:$A$1500,MATCH(0,COUNTIF($Z$10:Z197,$A$11:$A$1500),0)),\"\")","v":""}]
[null,null,null,null,null,null,null,null,null,189,null,null,null,null,null,null,null,null,null,null,null,null,null,null,null,{"$f":"IFERROR(INDEX($A$11:$A$1500,MATCH(0,COUNTIF($Z$10:Z198,$A$11:$A$1500),0)),\"\")","v":""}]
[null,null,null,null,null,null,null,null,null,190,null,null,null,null,null,null,null,null,null,null,null,null,null,null,null,{"$f":"IFERROR(INDEX($A$11:$A$1500,MATCH(0,COUNTIF($Z$10:Z199,$A$11:$A$1500),0)),\"\")","v":""}]
[null,null,null,null,null,null,null,null,null,191,null,null,null,null,null,null,null,null,null,null,null,null,null,null,null,{"$f":"IFERROR(INDEX($A$11:$A$1500,MATCH(0,COUNTIF($Z$10:Z200,$A$11:$A$1500),0)),\"\")","v":""}]
[null,null,null,null,null,null,null,null,null,192,null,null,null,null,null,null,null,null,null,null,null,null,null,null,null,{"$f":"IFERROR(INDEX($A$11:$A$1500,MATCH(0,COUNTIF($Z$10:Z201,$A$11:$A$1500),0)),\"\")","v":""}]
[null,null,null,null,null,null,null,null,null,193,null,null,null,null,null,null,null,null,null,null,null,null,null,null,null,{"$f":"IFERROR(INDEX($A$11:$A$1500,MATCH(0,COUNTIF($Z$10:Z202,$A$11:$A$1500),0)),\"\")","v":""}]
[null,null,null,null,null,null,null,null,null,194,null,null,null,null,null,null,null,null,null,null,null,null,null,null,null,{"$f":"IFERROR(INDEX($A$11:$A$1500,MATCH(0,COUNTIF($Z$10:Z203,$A$11:$A$1500),0)),\"\")","v":""}]
[null,null,null,null,null,null,null,null,null,195,null,null,null,null,null,null,null,null,null,null,null,null,null,null,null,{"$f":"IFERROR(INDEX($A$11:$A$1500,MATCH(0,COUNTIF($Z$10:Z204,$A$11:$A$1500),0)),\"\")","v":""}]
[null,null,null,null,null,null,null,null,null,196,null,null,null,null,null,null,null,null,null,null,null,null,null,null,null,{"$f":"IFERROR(INDEX($A$11:$A$1500,MATCH(0,COUNTIF($Z$10:Z205,$A$11:$A$1500),0)),\"\")","v":""}]
[null,null,null,null,null,null,null,null,null,197,null,null,null,null,null,null,null,null,null,null,null,null,null,null,null,{"$f":"IFERROR(INDEX($A$11:$A$1500,MATCH(0,COUNTIF($Z$10:Z206,$A$11:$A$1500),0)),\"\")","v":""}]
[null,null,null,null,null,null,null,null,null,198,null,null,null,null,null,null,null,null,null,null,null,null,null,null,null,{"$f":"IFERROR(INDEX($A$11:$A$1500,MATCH(0,COUNTIF($Z$10:Z207,$A$11:$A$1500),0)),\"\")","v":""}]
[null,null,null,null,null,null,null,null,null,199,null,null,null,null,null,null,null,null,null,null,null,null,null,null,null,{"$f":"IFERROR(INDEX($A$11:$A$1500,MATCH(0,COUNTIF($Z$10:Z208,$A$11:$A$1500),0)),\"\")","v":""}]
[null,null,null,null,null,null,null,null,null,200,null,null,null,null,null,null,null,null,null,null,null,null,null,null,null,{"$f":"IFERROR(INDEX($A$11:$A$1500,MATCH(0,COUNTIF($Z$10:Z209,$A$11:$A$1500),0)),\"\")","v":""}]
[null,null,null,null,null,null,null,null,null,201,null,null,null,null,null,null,null,null,null,null,null,null,null,null,null,{"$f":"IFERROR(INDEX($A$11:$A$1500,MATCH(0,COUNTIF($Z$10:Z210,$A$11:$A$1500),0)),\"\")","v":""}]
[null,null,null,null,null,null,null,null,null,202,null,null,null,null,null,null,null,null,null,null,null,null,null,null,null,{"$f":"IFERROR(INDEX($A$11:$A$1500,MATCH(0,COUNTIF($Z$10:Z211,$A$11:$A$1500),0)),\"\")","v":""}]
[null,null,null,null,null,null,null,null,null,203,null,null,null,null,null,null,null,null,null,null,null,null,null,null,null,{"$f":"IFERROR(INDEX($A$11:$A$1500,MATCH(0,COUNTIF($Z$10:Z212,$A$11:$A$1500),0)),\"\")","v":""}]
[null,null,null,null,null,null,null,null,null,204,null,null,null,null,null,null,null,null,null,null,null,null,null,null,null,{"$f":"IFERROR(INDEX($A$11:$A$1500,MATCH(0,COUNTIF($Z$10:Z213,$A$11:$A$1500),0)),\"\")","v":""}]
[null,null,null,null,null,null,null,null,null,205,null,null,null,null,null,null,null,null,null,null,null,null,null,null,null,{"$f":"IFERROR(INDEX($A$11:$A$1500,MATCH(0,COUNTIF($Z$10:Z214,$A$11:$A$1500),0)),\"\")","v":""}]
[null,null,null,null,null,null,null,null,null,206,null,null,null,null,null,null,null,null,null,null,null,null,null,null,null,{"$f":"IFERROR(INDEX($A$11:$A$1500,MATCH(0,COUNTIF($Z$10:Z215,$A$11:$A$1500),0)),\"\")","v":""}]
[null,null,null,null,null,null,null,null,null,207,null,null,null,null,null,null,null,null,null,null,null,null,null,null,null,{"$f":"IFERROR(INDEX($A$11:$A$1500,MATCH(0,COUNTIF($Z$10:Z216,$A$11:$A$1500),0)),\"\")","v":""}]
[null,null,null,null,null,null,null,null,null,208,null,null,null,null,null,null,null,null,null,null,null,null,null,null,null,{"$f":"IFERROR(INDEX($A$11:$A$1500,MATCH(0,COUNTIF($Z$10:Z217,$A$11:$A$1500),0)),\"\")","v":""}]
[null,null,null,null,null,null,null,null,null,209,null,null,null,null,null,null,null,null,null,null,null,null,null,null,null,{"$f":"IFERROR(INDEX($A$11:$A$1500,MATCH(0,COUNTIF($Z$10:Z218,$A$11:$A$1500),0)),\"\")","v":""}]
[null,null,null,null,null,null,null,null,null,210,null,null,null,null,null,null,null,null,null,null,null,null,null,null,null,{"$f":"IFERROR(INDEX($A$11:$A$1500,MATCH(0,COUNTIF($Z$10:Z219,$A$11:$A$1500),0)),\"\")","v":""}]
[null,null,null,null,null,null,null,null,null,211,null,null,null,null,null,null,null,null,null,null,null,null,null,null,null,{"$f":"IFERROR(INDEX($A$11:$A$1500,MATCH(0,COUNTIF($Z$10:Z220,$A$11:$A$1500),0)),\"\")","v":""}]
[null,null,null,null,null,null,null,null,null,212,null,null,null,null,null,null,null,null,null,null,null,null,null,null,null,{"$f":"IFERROR(INDEX($A$11:$A$1500,MATCH(0,COUNTIF($Z$10:Z221,$A$11:$A$1500),0)),\"\")","v":""}]
[null,null,null,null,null,null,null,null,null,213,null,null,null,null,null,null,null,null,null,null,null,null,null,null,null,{"$f":"IFERROR(INDEX($A$11:$A$1500,MATCH(0,COUNTIF($Z$10:Z222,$A$11:$A$1500),0)),\"\")","v":""}]
[null,null,null,null,null,null,null,null,null,214,null,null,null,null,null,null,null,null,null,null,null,null,null,null,null,{"$f":"IFERROR(INDEX($A$11:$A$1500,MATCH(0,COUNTIF($Z$10:Z223,$A$11:$A$1500),0)),\"\")","v":""}]
[null,null,null,null,null,null,null,null,null,215,null,null,null,null,null,null,null,null,null,null,null,null,null,null,null,{"$f":"IFERROR(INDEX($A$11:$A$1500,MATCH(0,COUNTIF($Z$10:Z224,$A$11:$A$1500),0)),\"\")","v":""}]
[null,null,null,null,null,null,null,null,null,216,null,null,null,null,null,null,null,null,null,null,null,null,null,null,null,{"$f":"IFERROR(INDEX($A$11:$A$1500,MATCH(0,COUNTIF($Z$10:Z225,$A$11:$A$1500),0)),\"\")","v":""}]
[null,null,null,null,null,null,null,null,null,217,null,null,null,null,null,null,null,null,null,null,null,null,null,null,null,{"$f":"IFERROR(INDEX($A$11:$A$1500,MATCH(0,COUNTIF($Z$10:Z226,$A$11:$A$1500),0)),\"\")","v":""}]
[null,null,null,null,null,null,null,null,null,218,null,null,null,null,null,null,null,null,null,null,null,null,null,null,null,{"$f":"IFERROR(INDEX($A$11:$A$1500,MATCH(0,COUNTIF($Z$10:Z227,$A$11:$A$1500),0)),\"\")","v":""}]
[null,null,null,null,null,null,null,null,null,219]
[null,null,null,null,null,null,null,null,null,220]
[null,null,null,null,null,null,null,null,null,221]
[null,null,null,null,null,null,null,null,null,222]
[null,null,null,null,null,null,null,null,null,223]
[null,null,null,null,null,null,null,null,null,224]
[null,null,null,null,null,null,null,null,null,225]
[null,null,null,null,null,null,null,null,null,226]
[null,null,null,null,null,null,null,null,null,227]
[null,null,null,null,null,null,null,null,null,228]
[null,null,null,null,null,null,null,null,null,229]
[null,null,null,null,null,null,null,null,null,230]
[null,null,null,null,null,null,null,null,null,231]
[null,null,null,null,null,null,null,null,null,232]
[null,null,null,null,null,null,null,null,null,233]
[null,null,null,null,null,null,null,null,null,234]
[null,null,null,null,null,null,null,null,null,235]
[null,null,null,null,null,null,null,null,null,236]
[null,null,null,null,null,null,null,null,null,237]
[null,null,null,null,null,null,null,null,null,238]
[null,null,null,null,null,null,null,null,null,239]
[null,null,null,null,null,null,null,null,null,240]
[null,null,null,null,null,null,null,null,null,241]
[null,null,null,null,null,null,null,null,null,242]
[null,null,null,null,null,null,null,null,null,243]
[null,null,null,null,null,null,null,null,null,244]
[null,null,null,null,null,null,null,null,null,245]
[null,null,null,null,null,null,null,null,null,246]
[null,null,null,null,null,null,null,null,null,247]
[null,null,null,null,null,null,null,null,null,248]
[null,null,null,null,null,null,null,null,null,249]
[null,null,null,null,null,null,null,null,null,250]
[null,null,null,null,null,null,null,null,null,251]
[null,null,null,null,null,null,null,null,null,252]
[null,null,null,null,null,null,null,null,null,253]
[null,null,null,null,null,null,null,null,null,254]
[null,null,null,null,null,null,null,null,null,255]
[null,null,null,null,null,null,null,null,null,256]
[null,null,null,null,null,null,null,null,null,257]
[null,null,null,null,null,null,null,null,null,258]
[null,null,null,null,null,null,null,null,null,259]
[null,null,null,null,null,null,null,null,null,260]
[null,null,null,null,null,null,null,null,null,261]
[null,null,null,null,null,null,null,null,null,262]
[null,null,null,null,null,null,null,null,null,263]
[null,null,null,null,null,null,null,null,null,264]
[null,null,null,null,null,null,null,null,null,265]
[null,null,null,null,null,null,null,null,null,266]
[null,null,null,null,null,null,null,null,null,267]
[null,null,null,null,null,null,null,null,null,268]
[null,null,null,null,null,null,null,null,null,269]
[null,null,null,null,null,null,null,null,null,270]
[null,null,null,null,null,null,null,null,null,271]
[null,null,null,null,null,null,null,null,null,272]
[null,null,null,null,null,null,null,null,null,273]
[null,null,null,null,null,null,null,null,null,274]
[null,null,null,null,null,null,null,null,null,275]
[null,null,null,null,null,null,null,null,null,276]
[null,null,null,null,null,null,null,null,null,277]
[null,null,null,null,null,null,null,null,null,278]
[null,null,null,null,null,null,null,null,null,279]
[null,null,null,null,null,null,null,null,null,280]
[null,null,null,null,null,null,null,null,null,281]
[null,null,null,null,null,null,null,null,null,282]
[null,null,null,null,null,null,null,null,null,283]
[null,null,null,null,null,null,null,null,null,284]
[null,null,null,null,null,null,null,null,null,285]
[null,null,null,null,null,null,null,null,null,286]
[null,null,null,null,null,null,null,null,null,287]
[null,null,null,null,null,null,null,null,null,288]
[null,null,null,null,null,null,null,null,null,289]
[null,null,null,null,null,null,null,null,null,290]
[null,null,null,null,null,null,null,null,null,291]
[null,null,null,null,null,null,null,null,null,292]
[null,null,null,null,null,null,null,null,null,293]
[null,null,null,null,null,null,null,null,null,294]
[null,null,null,null,null,null,null,null,null,295]
[null,null,null,null,null,null,null,null,null,296]
[null,null,null,null,null,null,null,null,null,297]
[null,null,null,null,null,null,null,null,null,298]
[null,null,null,null,null,null,null,null,null,299]
[null,null,null,null,null,null,null,null,null,300]
[null,null,null,null,null,null,null,null,null,301]
[null,null,null,null,null,null,null,null,null,302]
[null,null,null,null,null,null,null,null,null,303]
[null,null,null,null,null,null,null,null,null,304]
[null,null,null,null,null,null,null,null,null,305]
[null,null,null,null,null,null,null,null,null,306]
[null,null,null,null,null,null,null,null,null,307]
[null,null,null,null,null,null,null,null,null,308]
[null,null,null,null,null,null,null,null,null,309]
[null,null,null,null,null,null,null,null,null,310]
[null,null,null,null,null,null,null,null,null,311]
[null,null,null,null,null,null,null,null,null,312]
[null,null,null,null,null,null,null,null,null,313]
[null,null,null,null,null,null,null,null,null,314]
[null,null,null,null,null,null,null,null,null,315]
[null,null,null,null,null,null,null,null,null,316]
[null,null,null,null,null,null,null,null,null,317]
[null,null,null,null,null,null,null,null,null,318]
[null,null,null,null,null,null,null,null,null,319]
[null,null,null,null,null,null,null,null,null,320]
[null,null,null,null,null,null,null,null,null,321]
[null,null,null,null,null,null,null,null,null,322]
[null,null,null,null,null,null,null,null,null,323]
[null,null,null,null,null,null,null,null,null,324]
[null,null,null,null,null,null,null,null,null,325]
[null,null,null,null,null,null,null,null,null,326]
[null,null,null,null,null,null,null,null,null,327]
[null,null,null,null,null,null,null,null,null,328]
[null,null,null,null,null,null,null,null,null,329]
[null,null,null,null,null,null,null,null,null,330]
[null,null,null,null,null,null,null,null,null,331]
[null,null,null,null,null,null,null,null,null,332]
[null,null,null,null,null,null,null,null,null,333]
[null,null,null,null,null,null,null,null,null,334]
[null,null,null,null,null,null,null,null,null,335]
[null,null,null,null,null,null,null,null,null,336]
[null,null,null,null,null,null,null,null,null,337]
[null,null,null,null,null,null,null,null,null,338]
[null,null,null,null,null,null,null,null,null,339]
[null,null,null,null,null,null,null,null,null,340]
[null,null,null,null,null,null,null,null,null,341]
[null,null,null,null,null,null,null,null,null,342]
[null,null,null,null,null,null,null,null,null,343]
[null,null,null,null,null,null,null,null,null,344]
[null,null,null,null,null,null,null,null,null,345]
[null,null,null,null,null,null,null,null,null,346]
[null,null,null,null,null,null,null,null,null,347]
[null,null,null,null,null,null,null,null,null,348]
[null,null,null,null,null,null,null,null,null,349]
[null,null,null,null,null,null,null,null,null,350]
[null,null,null,null,null,null,null,null,null,351]
[null,null,null,null,null,null,null,null,null,352]
[null,null,null,null,null,null,null,null,null,353]
[null,null,null,null,null,null,null,null,null,354]
[null,null,null,null,null,null,null,null,null,355]
[null,null,null,null,null,null,null,null,null,356]
[null,null,null,null,null,null,null,null,null,357]

{"sheet":"Blad3","index":2,"n_rows":0,"n_cols":0,"rows_kept":0,"cut":false,"hidden":false,"merged":[]}